bitfinex/quotes_SOLUSD_20230905
["timestamp","ask_amount","ask_price","bid_price","bid_amount"]
[1693932416030,7.588,20.557,20.542,7.594]
[1693932416337,7.589,20.555,20.543,24.50764232]
[1693932416543,55.0,20.556,20.544,7.593]
[1693932417339,62.589,20.556,20.544,7.593]
[1693932417946,62.589,20.556,20.544,32.10064232]
[1693932418627,7.589,20.556,20.544,32.10064232]
[1693932418822,7.589,20.556,20.545,44.50764232]
[1693932419028,7.588,20.558,20.545,52.09964232]
[1693932420234,7.587,20.56,20.545,52.09964232]
[1693932420436,94.2994,20.564,20.545,52.09964232]
[1693932420638,94.2994,20.564,20.546,55.0]
[1693932420836,7.586,20.562,20.548,7.591]
[1693932421036,7.586,20.562,20.548,32.09864232]
[1693932421745,94.2994,20.564,20.548,32.09864232]
[1693932422049,94.2994,20.564,20.551,7.59]
[1693932422427,101.8854,20.564,20.551,7.59]
[1693932422632,101.8854,20.564,20.549,32.09864232]
[1693932422838,101.8854,20.564,20.55,55.0]
[1693932423238,101.8854,20.564,20.55,87.09764232]
[1693932423441,7.586,20.564,20.55,87.09764232]
[1693932424242,55.0,20.563,20.546,7.592]
[1693932424544,7.588,20.559,20.546,7.592]
[1693932425245,62.588,20.558,20.54,28.8]
[1693932425646,62.588,20.558,20.541,24.50764232]
[1693932425951,62.588,20.558,20.543,7.593]
[1693932426135,7.588,20.558,20.543,32.10064232]
[1693932426451,7.588,20.558,20.544,24.50764232]
[1693932427345,7.588,20.558,20.544,32.10064232]
[1693932429542,14.36726741,20.565,20.544,32.10064232]
[1693932429851,106.9103,20.568,20.55,53.324]
[1693932430033,106.9103,20.568,20.552,7.59]
[1693932430740,99.3263,20.568,20.552,7.59]
[1693932430952,99.3263,20.568,20.553,24.50764232]
[1693932431253,99.3263,20.568,20.557,32.105]
[1693932431744,99.3263,20.568,20.557,7.588]
[1693932432445,106.9103,20.568,20.557,7.588]
[1693932432651,106.9103,20.568,20.553,24.50764232]
[1693932432843,7.584,20.568,20.55,28.8]
[1693932433048,7.584,20.568,20.55,53.30764232]
[1693932433049,97.4184,20.567,20.55,53.30764232]
[1693932433348,7.586,20.564,20.552,7.59]
[1693932433741,55.0,20.563,20.544,14.53992209]
[1693932434047,7.587,20.559,20.544,39.04756441]
[1693932434234,7.587,20.559,20.547,7.592]
[1693932434551,7.587,20.559,20.548,64.51794695]
[1693932435137,7.587,20.559,20.548,56.92694695]
[1693932435539,7.587,20.562,20.548,64.51794695]
[1693932437246,7.587,20.562,20.549,55.0]
[1693932439059,7.587,20.562,20.549,62.591]
[1693932439451,7.586,20.564,20.549,87.09864232]
[1693932441655,22.32906568,20.564,20.549,87.09864232]
[1693932444153,22.32906568,20.564,20.549,7.591]
[1693932444561,22.32906568,20.564,20.55,55.0]
[1693932444761,22.32906568,20.564,20.55,62.59]
[1693932444944,105.0034,20.566,20.55,62.59]
[1693932445341,7.584,20.568,20.55,62.59]
[1693932445546,7.584,20.568,20.551,24.50764232]
[1693932445745,7.584,20.568,20.554,7.589]
[1693932446863,55.0,20.567,20.554,7.589]
[1693932447051,62.585,20.567,20.554,7.589]
[1693932447359,7.585,20.567,20.554,7.589]
[1693932448459,7.584,20.568,20.554,7.589]
[1693932450058,7.584,20.568,20.555,55.0]
[1693932450259,7.584,20.568,20.556,7.588]
[1693932450554,7.584,20.568,20.555,55.0]
[1693932450759,7.584,20.568,20.551,39.32436318]
[1693932450972,61.065,20.568,20.55,28.8]
[1693932451160,7.586,20.562,20.55,28.8]
[1693932451359,7.586,20.562,20.55,36.39]
[1693932452662,7.586,20.562,20.551,55.0]
[1693932453049,92.546,20.567,20.552,24.50764232]
[1693932453050,7.586,20.564,20.552,24.50764232]
[1693932453348,7.585,20.566,20.553,7.59]
[1693932453863,7.585,20.566,20.553,32.09764232]
[1693932454160,7.585,20.566,20.554,24.50764232]
[1693932455559,55.0,20.565,20.548,56.92694695]
[1693932455860,32.1,20.56,20.542,7.593]
[1693932456054,55.0,20.559,20.543,20.0]
[1693932456256,7.588,20.557,20.544,32.10064232]
[1693932456559,7.588,20.557,20.545,20.0]
[1693932456754,7.588,20.557,20.546,24.50764232]
[1693932456952,96.761,20.566,20.546,24.50764232]
[1693932456953,7.587,20.561,20.546,24.50764232]
[1693932457156,7.587,20.561,20.549,7.591]
[1693932457358,7.587,20.561,20.55,87.09764232]
[1693932457661,7.586,20.563,20.55,32.09764232]
[1693932457850,7.586,20.563,20.551,55.0]
[1693932458052,7.586,20.563,20.552,32.09764232]
[1693932458263,92.546,20.567,20.553,55.0]
[1693932458662,7.586,20.564,20.553,62.589]
[1693932458857,7.586,20.564,20.553,87.09664232]
[1693932459057,7.585,20.566,20.553,87.09664232]
[1693932459653,7.585,20.566,20.553,79.50764232]
[1693932460053,7.585,20.566,20.553,24.50764232]
[1693932462154,7.585,20.566,20.553,32.09664232]
[1693932462555,55.0,20.565,20.55,28.8]
[1693932462757,7.586,20.562,20.548,7.591]
[1693932462960,7.586,20.562,20.549,24.50764232]
[1693932463850,7.586,20.562,20.55,55.0]
[1693932464358,7.586,20.562,20.55,62.591]
[1693932465071,7.586,20.562,20.55,55.0]
[1693932465477,7.586,20.562,20.55,79.50764232]
[1693932465669,7.586,20.562,20.55,87.09864232]
[1693932466170,7.586,20.562,20.55,32.09864232]
[1693932475761,38.45374877,20.567,20.551,79.50764232]
[1693932475962,7.585,20.567,20.555,7.589]
[1693932476269,7.585,20.567,20.551,79.50764232]
[1693932477274,7.585,20.567,20.551,87.09764232]
[1693932477775,55.0,20.566,20.549,7.591]
[1693932477978,7.587,20.562,20.549,7.591]
[1693932480275,7.587,20.562,20.547,7.592]
[1693932480488,55.0,20.561,20.547,7.592]
[1693932480778,7.588,20.557,20.545,7.592]
[1693932483782,7.588,20.557,20.543,7.593]
[1693932484287,7.588,20.557,20.541,46.75694903]
[1693932485179,7.588,20.557,20.542,55.0]
[1693932485383,7.588,20.557,20.542,62.593]
[1693932487972,7.588,20.557,20.542,7.593]
[1693932490383,7.592,20.548,20.533,27.597]
[1693932490980,7.592,20.548,20.533,7.597]
[1693932491285,55.0,20.55,20.532,81.47895081]
[1693932491286,32.128,20.543,20.532,56.97130849]
[1693932491583,28.8,20.54,20.524,61.93812555]
[1693932491885,32.138,20.536,20.524,61.93812555]
[1693932492084,7.598,20.532,20.524,61.93812555]
[1693932494083,7.598,20.532,20.525,56.99073841]
[1693932494280,85.73,20.53,20.515,4.94461036]
[1693932494482,114.53,20.53,20.508,14.80994151]
[1693932494678,114.53,20.53,20.506,4.94461036]
[1693932494679,32.16,20.522,20.506,4.94461036]
[1693932494992,7.603,20.517,20.506,12.55161036]
[1693932495186,7.602,20.519,20.506,4.94461036]
[1693932495371,96.949,20.527,20.506,4.94461036]
[1693932495578,7.602,20.52,20.506,4.94461036]
[1693932495879,55.0,20.519,20.506,4.94461036]
[1693932496084,7.603,20.516,20.506,4.94461036]
[1693932496683,55.0,20.515,20.501,4.94461036]
[1693932496881,7.605,20.513,20.501,4.94461036]
[1693932497084,55.0,20.515,20.497,24.50764232]
[1693932497085,7.604,20.515,20.5,28.8]
[1693932497285,7.602,20.52,20.501,37.06125268]
[1693932497588,7.602,20.52,20.502,24.50764232]
[1693932497787,7.602,20.52,20.505,7.607]
[1693932497988,46.97370731,20.52,20.506,4.94461036]
[1693932498194,7.602,20.52,20.506,4.94461036]
[1693932498491,7.602,20.52,20.503,4.94461036]
[1693932498690,7.603,20.517,20.505,4.94461036]
[1693932498891,7.603,20.517,20.503,4.94461036]
[1693932499296,7.605,20.513,20.497,7.61]
[1693932499488,7.605,20.513,20.498,4.94461036]
[1693932499689,55.0,20.512,20.498,7.61]
[1693932499884,55.0,20.512,20.494,49.09964232]
[1693932499885,55.746,20.51,20.494,24.50764232]
[1693932500088,55.746,20.51,20.484,24.604]
[1693932500089,4.94461035,20.509,20.484,24.604]
[1693932500295,10.45320781,20.508,20.483,405.915]
[1693932500482,7.609,20.501,20.483,398.3]
[1693932500689,108.08461035,20.5,20.477,14.71728515]
[1693932500988,7.61,20.498,20.483,7.615]
[1693932501183,59.94461035,20.497,20.483,7.615]
[1693932501382,7.612,20.494,20.477,14.71728515]
[1693932501698,92.9924,20.5,20.482,7.616]
[1693932501903,7.611,20.497,20.482,7.616]
[1693932503303,24.582,20.503,20.482,7.616]
[1693932503484,3.3535099,20.502,20.482,7.616]
[1693932503790,7.61,20.499,20.483,55.0]
[1693932503992,3.3535099,20.498,20.481,55.0]
[1693932504394,7.611,20.496,20.484,7.615]
[1693932504582,7.611,20.496,20.485,55.0]
[1693932505597,24.584,20.497,20.485,62.615]
[1693932505792,7.61,20.498,20.485,62.615]
[1693932505996,7.611,20.497,20.485,62.615]
[1693932506495,7.611,20.497,20.484,7.615]
[1693932507001,32.195,20.497,20.484,7.615]
[1693932507298,32.195,20.497,20.485,7.615]
[1693932510197,32.195,20.497,20.482,7.616]
[1693932510400,7.613,20.491,20.473,49.12464232]
[1693932510705,7.613,20.491,20.476,7.618]
[1693932513195,7.613,20.491,20.477,55.0]
[1693932513403,7.613,20.491,20.479,7.617]
[1693932514798,7.613,20.491,20.474,7.619]
[1693932515195,7.613,20.491,20.475,55.0]
[1693932515495,7.613,20.491,20.474,55.0]
[1693932515702,7.613,20.491,20.472,55.0]
[1693932516101,7.613,20.491,20.47,48.23]
[1693932516403,53.679,20.493,20.47,48.23]
[1693932516404,7.615,20.484,20.47,48.23]
[1693932517791,7.615,20.484,20.466,24.50764232]
[1693932517994,55.0,20.483,20.463,7.623]
[1693932518205,7.618,20.477,20.464,20.0]
[1693932518804,7.618,20.477,20.461,7.624]
[1693932518805,7.618,20.477,20.462,20.0]
[1693932519305,7.618,20.477,20.463,7.623]
[1693932519498,7.618,20.477,20.466,7.622]
[1693932519894,7.618,20.477,20.464,7.623]
[1693932520094,7.618,20.477,20.461,14.61602344]
[1693932520299,7.62,20.472,20.462,7.623]
[1693932520609,7.62,20.472,20.46,7.624]
[1693932521106,61.395,20.472,20.46,7.624]
[1693932521308,61.395,20.472,20.453,24.641]
[1693932521509,61.395,20.472,20.457,7.625]
[1693932522089,53.775,20.472,20.457,7.625]
[1693932522321,7.618,20.476,20.464,7.623]
[1693932522694,7.618,20.476,20.458,24.50764232]
[1693932523005,93.964268,20.476,20.458,24.50764232]
[1693932523208,93.964268,20.476,20.458,32.13264232]
[1693932523709,55.0,20.475,20.458,32.13264232]
[1693932524013,7.62,20.471,20.458,32.13264232]
[1693932524395,55.0,20.475,20.458,32.13264232]
[1693932524696,7.619,20.474,20.458,32.13264232]
[1693932525098,7.619,20.474,20.461,7.624]
[1693932525504,7.619,20.474,20.462,55.0]
[1693932525710,7.619,20.474,20.462,7.623]
[1693932526600,7.619,20.474,20.459,55.0]
[1693932526809,55.0,20.473,20.453,38.96098045]
[1693932527001,55.0,20.473,20.451,7.627]
[1693932527002,32.247,20.467,20.451,7.627]
[1693932527308,32.247,20.467,20.449,7.628]
[1693932527309,55.0,20.466,20.449,7.628]
[1693932527508,7.624,20.461,20.449,7.628]
[1693932528215,53.808,20.462,20.449,7.628]
[1693932528403,7.623,20.464,20.449,7.628]
[1693932528595,7.623,20.464,20.45,55.0]
[1693932528800,7.622,20.467,20.454,7.626]
[1693932529001,7.622,20.467,20.455,55.0]
[1693932529207,7.622,20.467,20.455,62.626]
[1693932529613,78.44,20.466,20.455,62.626]
[1693932530111,7.622,20.465,20.453,7.627]
[1693932530513,96.6405,20.469,20.453,7.627]
[1693932530721,7.622,20.466,20.453,7.627]
[1693932531016,55.852,20.466,20.453,7.627]
[1693932531620,48.23,20.466,20.453,7.627]
[1693932532301,55.852,20.466,20.453,7.627]
[1693932532509,55.852,20.466,20.45,7.628]
[1693932532725,55.852,20.466,20.447,24.648]
[1693932532726,55.0,20.465,20.448,7.629]
[1693932532914,55.0,20.465,20.443,78.459]
[1693932532915,7.624,20.46,20.446,7.629]
[1693932533110,7.624,20.46,20.44,62.64173594]
[1693932533316,55.0,20.459,20.44,48.23]
[1693932533615,7.627,20.454,20.44,7.631]
[1693932533817,7.627,20.454,20.435,24.663]
[1693932534208,32.134643,20.454,20.436,20.0]
[1693932534419,32.134643,20.454,20.441,11.96501993]
[1693932535116,32.134643,20.454,20.441,4.33401993]
[1693932535328,38.59491192,20.465,20.442,7.631]
[1693932535529,7.624,20.46,20.447,7.629]
[1693932536104,90.276662,20.46,20.447,7.629]
[1693932536304,82.652662,20.46,20.447,7.629]
[1693932536726,106.9316,20.462,20.447,7.629]
[1693932537418,189.584263,20.462,20.447,7.629]
[1693932540220,189.584263,20.462,20.448,55.0]
[1693932540423,189.584263,20.462,20.448,62.628]
[1693932541028,189.584263,20.462,20.443,24.653]
[1693932541223,55.0,20.461,20.444,55.0]
[1693932541416,7.626,20.456,20.441,36.47266225]
[1693932543223,82.652663,20.462,20.441,36.47266225]
[1693932543408,46.61712915,20.465,20.454,7.626]
[1693932543612,7.623,20.465,20.454,7.626]
[1693932543804,7.623,20.465,20.45,48.23]
[1693932544020,7.623,20.465,20.451,55.0]
[1693932544223,61.419,20.465,20.451,55.0]
[1693932544916,61.419,20.465,20.453,7.626]
[1693932545110,61.419,20.465,20.449,7.628]
[1693932545310,55.0,20.464,20.449,7.628]
[1693932545519,55.0,20.464,20.444,24.651]
[1693932545520,7.624,20.46,20.447,7.629]
[1693932545722,55.0,20.459,20.447,7.629]
[1693932546121,7.624,20.46,20.447,7.629]
[1693932546712,7.624,20.46,20.445,7.63]
[1693932547015,7.624,20.46,20.446,20.0]
[1693932547217,7.624,20.46,20.446,27.629]
[1693932547519,55.0,20.459,20.446,27.629]
[1693932547725,62.625,20.459,20.446,27.629]
[1693932547923,91.0656,20.458,20.446,7.629]
[1693932548113,7.626,20.456,20.446,7.629]
[1693932550214,7.626,20.456,20.444,7.63]
[1693932550416,7.626,20.456,20.445,75.0]
[1693932550617,7.626,20.456,20.446,7.629]
[1693932550928,98.6906,20.458,20.446,7.629]
[1693932551515,98.6906,20.458,20.444,7.63]
[1693932554723,55.0,20.457,20.444,7.63]
[1693932554925,7.626,20.456,20.444,7.63]
[1693932555428,7.626,20.456,20.441,4.33401993]
[1693932555622,7.628,20.451,20.441,4.33401993]
[1693932556426,7.628,20.451,20.441,11.96501993]
[1693932556933,7.628,20.451,20.441,4.33401993]
[1693932557927,48.23,20.454,20.441,11.96501993]
[1693932558135,55.857,20.454,20.441,11.96501993]
[1693932558336,48.23,20.454,20.441,11.96501993]
[1693932558534,48.23,20.454,20.442,55.0]
[1693932558731,55.857,20.454,20.442,62.631]
[1693932559524,55.857,20.454,20.441,4.33401993]
[1693932559729,55.0,20.453,20.441,4.33401993]
[1693932559926,7.627,20.452,20.441,4.33401993]
[1693932560124,55.0,20.451,20.441,4.33401993]
[1693932560320,7.629,20.448,20.441,4.33401993]
[1693932560726,55.0,20.447,20.441,4.33401993]
[1693932560927,86.082,20.446,20.441,4.33401993]
[1693932561127,55.0,20.445,20.441,4.33401993]
[1693932561327,7.63,20.444,20.441,4.33401993]
[1693932562136,55.0,20.443,20.441,4.33401993]
[1693932562341,32.286,20.442,20.421,24.68]
[1693932562544,55.0,20.441,20.421,24.68]
[1693932562843,7.633,20.437,20.42,48.23]
[1693932563139,99.1561,20.441,20.423,7.638]
[1693932563327,55.0,20.44,20.423,32.316]
[1693932563747,91.6936,20.439,20.423,32.316]
[1693932564637,7.632,20.44,20.423,32.316]
[1693932564953,7.632,20.44,20.424,55.0]
[1693932565132,7.632,20.44,20.427,7.636]
[1693932565538,7.632,20.44,20.424,55.0]
[1693932565539,7.632,20.44,20.424,62.637]
[1693932565741,55.0,20.439,20.424,55.0]
[1693932565938,7.634,20.435,20.423,7.638]
[1693932566245,7.633,20.437,20.423,7.638]
[1693932566627,7.632,20.439,20.423,7.638]
[1693932566832,53.813,20.438,20.423,7.638]
[1693932567032,61.446,20.438,20.423,7.638]
[1693932567652,53.813,20.438,20.424,55.0]
[1693932567944,53.813,20.438,20.428,7.636]
[1693932568141,53.813,20.438,20.41,120.96764232]
[1693932568334,7.633,20.436,20.41,7.643]
[1693932568529,48.23,20.43,20.408,7.643]
[1693932568740,7.637,20.425,20.409,7.643]
[1693932568939,5.137,20.425,20.409,7.643]
[1693932569143,7.637,20.425,20.402,24.703]
[1693932569345,55.0,20.424,20.406,7.644]
[1693932569640,55.0,20.424,20.396,97.564]
[1693932569641,7.639,20.421,20.397,24.708]
[1693932570045,55.0,20.42,20.4,7.646]
[1693932570347,7.641,20.414,20.4,7.646]
[1693932570938,7.641,20.416,20.4,7.646]
[1693932571336,61.574,20.416,20.4,7.646]
[1693932571848,7.642,20.414,20.4,7.646]
[1693932572938,55.0,20.413,20.4,7.646]
[1693932573135,62.642,20.413,20.4,7.646]
[1693932573347,93.0062,20.412,20.4,7.646]
[1693932573846,100.6482,20.412,20.398,7.647]
[1693932574050,100.6482,20.412,20.396,7.648]
[1693932574354,55.0,20.411,20.38,96.46]
[1693932574537,93.0062,20.412,20.392,32.364]
[1693932574737,93.0062,20.412,20.393,20.0]
[1693932574945,93.0062,20.412,20.398,7.647]
[1693932575548,53.933,20.416,20.4,48.23]
[1693932575846,100.6452,20.42,20.404,7.645]
[1693932576037,100.6452,20.42,20.402,7.646]
[1693932576237,100.6452,20.42,20.4,48.23]
[1693932576437,7.639,20.42,20.399,24.50764232]
[1693932576650,99.965,20.419,20.399,24.50764232]
[1693932576857,7.64,20.418,20.402,7.646]
[1693932577551,99.965,20.419,20.402,7.646]
[1693932577745,99.965,20.419,20.407,7.644]
[1693932578457,99.965,20.419,20.403,55.0]
[1693932578637,7.638,20.422,20.405,7.644]
[1693932579149,14.71897988,20.423,20.41,48.23]
[1693932579150,38.494855,20.423,20.41,48.23]
[1693932579357,38.494855,20.423,20.409,7.643]
[1693932580067,46.132855,20.423,20.409,7.643]
[1693932580243,55.0,20.422,20.406,7.644]
[1693932580445,7.639,20.421,20.406,7.644]
[1693932580645,7.639,20.421,20.403,7.645]
[1693932581866,7.639,20.421,20.395,93.03552034]
[1693932581867,55.0,20.42,20.401,7.646]
[1693932582045,7.641,20.415,20.401,7.646]
[1693932583441,86.285,20.415,20.401,7.646]
[1693932584247,86.285,20.415,20.402,55.0]
[1693932584248,78.644,20.415,20.402,55.0]
[1693932584457,94.0252,20.418,20.402,55.0]
[1693932584661,101.6652,20.418,20.405,7.645]
[1693932585151,101.6652,20.418,20.398,53.925]
[1693932585152,101.6652,20.418,20.393,53.937]
[1693932585357,7.639,20.42,20.399,7.647]
[1693932585662,62.64,20.418,20.403,7.645]
[1693932586872,160.103,20.418,20.394,35.97714]
[1693932587160,160.103,20.418,20.394,23.62514]
[1693932587366,7.643,20.411,20.394,7.648]
[1693932587873,7.644,20.408,20.394,7.648]
[1693932588364,7.644,20.408,20.393,7.649]
[1693932588565,32.36,20.408,20.394,20.0]
[1693932588875,32.36,20.408,20.392,24.50764232]
[1693932589046,32.36,20.408,20.392,7.65]
[1693932589047,7.645,20.405,20.392,7.65]
[1693932589758,7.645,20.405,20.39,7.65]
[1693932590457,90.4415,20.407,20.39,55.88]
[1693932590660,90.4415,20.407,20.39,80.38764232]
[1693932590864,90.4415,20.407,20.391,24.50764232]
[1693932591079,14.92496321,20.414,20.391,24.50764232]
[1693932591245,7.644,20.407,20.391,24.50764232]
[1693932591445,7.643,20.41,20.393,7.649]
[1693932591645,90.9028,20.413,20.393,7.649]
[1693932592063,90.9028,20.413,20.394,24.50764232]
[1693932592262,98.5448,20.413,20.397,7.648]
[1693932592448,98.5448,20.413,20.394,24.50764232]
[1693932592650,98.5448,20.413,20.395,55.0]
[1693932592859,98.5448,20.413,20.398,7.647]
[1693932593169,7.642,20.413,20.398,7.647]
[1693932593357,7.642,20.413,20.396,7.648]
[1693932593754,55.0,20.412,20.394,24.50764232]
[1693932593958,7.644,20.407,20.386,24.722]
[1693932594155,55.0,20.406,20.388,7.651]
[1693932594362,7.646,20.402,20.388,7.651]
[1693932594677,7.645,20.404,20.388,7.651]
[1693932595180,7.645,20.404,20.383,24.50764232]
[1693932595381,55.0,20.403,20.378,7.655]
[1693932595675,7.648,20.396,20.378,7.655]
[1693932595856,24.707,20.4,20.378,7.655]
[1693932595857,7.649,20.395,20.378,7.655]
[1693932596052,48.23,20.404,20.378,61.634]
[1693932596373,96.0781,20.401,20.379,20.0]
[1693932596557,96.0781,20.401,20.385,7.652]
[1693932596758,7.647,20.4,20.386,24.50764232]
[1693932596959,96.0781,20.401,20.386,32.15864232]
[1693932597267,48.23,20.404,20.386,32.15864232]
[1693932597268,48.23,20.404,20.39,48.23]
[1693932597470,48.23,20.404,20.391,79.50764232]
[1693932597675,95.3592,20.408,20.391,32.15764232]
[1693932597981,103.0032,20.408,20.391,32.15764232]
[1693932598274,103.0032,20.408,20.391,7.65]
[1693932598459,0.49999999,20.407,20.391,7.65]
[1693932598659,7.645,20.403,20.388,7.651]
[1693932599063,150.3592,20.402,20.388,7.651]
[1693932599260,7.647,20.4,20.388,7.651]
[1693932599564,7.647,20.4,20.386,7.652]
[1693932599962,95.3592,20.402,20.386,7.652]
[1693932600181,95.3592,20.402,20.386,32.15964232]
[1693932600775,95.3592,20.402,20.387,79.50764232]
[1693932600973,7.643,20.41,20.391,7.65]
[1693932601157,7.643,20.41,20.392,79.50764232]
[1693932601364,7.643,20.41,20.393,20.0]
[1693932601558,7.643,20.41,20.39,48.23]
[1693932601770,7.643,20.41,20.389,7.65]
[1693932601966,7.643,20.41,20.387,7.651]
[1693932602167,0.49999999,20.409,20.387,7.651]
[1693932602474,7.646,20.403,20.387,7.651]
[1693932602868,61.553,20.403,20.387,7.651]
[1693932603070,95.6573,20.402,20.39,48.23]
[1693932603270,95.6573,20.402,20.392,7.649]
[1693932603777,103.3033,20.402,20.392,7.649]
[1693932605270,53.907,20.403,20.392,7.649]
[1693932605465,7.644,20.406,20.392,7.649]
[1693932605665,7.645,20.404,20.392,7.649]
[1693932606687,90.6887,20.408,20.392,32.364]
[1693932606889,90.6887,20.408,20.393,55.0]
[1693932606890,78.671,20.407,20.393,55.0]
[1693932607069,7.644,20.407,20.393,7.649]
[1693932607767,7.644,20.407,20.387,53.955]
[1693932607768,32.36,20.407,20.386,24.722]
[1693932608078,7.647,20.4,20.389,7.65]
[1693932608278,7.647,20.4,20.387,7.651]
[1693932608673,7.647,20.4,20.38,48.23]
[1693932608674,55.0,20.399,20.38,48.23]
[1693932608881,7.647,20.4,20.383,7.653]
[1693932610566,7.647,20.4,20.388,7.651]
[1693932611090,7.647,20.4,20.389,7.651]
[1693932612589,24.702,20.403,20.389,7.651]
[1693932612773,24.702,20.403,20.386,7.652]
[1693932612774,7.647,20.4,20.386,7.652]
[1693932613288,7.647,20.4,20.384,7.652]
[1693932613590,7.647,20.4,20.38,72.959]
[1693932613591,7.647,20.4,20.382,7.653]
[1693932614667,7.647,20.4,20.383,55.0]
[1693932614868,7.647,20.4,20.386,7.652]
[1693932615090,55.0,20.399,20.386,7.652]
[1693932615274,7.648,20.398,20.384,7.652]
[1693932615792,7.648,20.398,20.381,7.654]
[1693932616083,55.0,20.397,20.379,7.654]
[1693932616294,32.365,20.392,20.372,24.739]
[1693932616480,32.365,20.392,20.376,7.656]
[1693932616680,94.5267,20.391,20.376,7.656]
[1693932616881,7.651,20.39,20.376,7.656]
[1693932617288,55.0,20.389,20.376,7.656]
[1693932617480,7.652,20.386,20.373,7.656]
[1693932617790,55.882,20.386,20.373,7.656]
[1693932617991,55.882,20.386,20.371,7.657]
[1693932618194,55.882,20.386,20.37,48.23]
[1693932618195,55.882,20.386,20.373,7.657]
[1693932618989,55.882,20.386,20.37,7.658]
[1693932619386,109.84,20.386,20.368,7.658]
[1693932619589,109.84,20.386,20.366,7.659]
[1693932619782,55.0,20.385,20.366,7.659]
[1693932619984,7.654,20.38,20.366,7.659]
[1693932620587,107.2289,20.38,20.366,7.659]
[1693932621195,7.654,20.38,20.366,7.659]
[1693932621696,99.5749,20.384,20.366,7.659]
[1693932621883,107.2279,20.384,20.366,7.659]
[1693932622085,48.23,20.38,20.356,7.663]
[1693932622280,32.396,20.373,20.355,7.663]
[1693932622488,24.734,20.377,20.355,7.663]
[1693932622686,7.655,20.377,20.356,24.50764232]
[1693932622901,7.655,20.377,20.362,7.661]
[1693932623898,55.0,20.376,20.359,7.662]
[1693932624084,7.657,20.372,20.359,7.662]
[1693932624399,7.657,20.372,20.355,7.663]
[1693932624586,108.986,20.376,20.346,137.1743163]
[1693932624591,7.659,20.366,20.346,24.77]
[1693932624791,97.678,20.373,20.344,54.068]
[1693932624792,97.655,20.378,20.354,7.664]
[1693932624986,90.1644,20.37,20.355,24.50764232]
[1693932625199,90.1644,20.37,20.359,7.662]